fUSD/lending_fUSD_20250511
["ID","MTS","AMOUNT","RATE_DAILY","PERIOD"]
[360684565,1746927035162,-462.37002416,0.00019807,2]
[360684566,1746927035172,-500.0,0.00019807,2]
[360684567,1746927035181,-1010.93,0.00019807,2]
[360684568,1746927035191,-400.0,0.00019807,2]
[360684569,1746927035205,-400.0,0.00019807,2]
[360684570,1746927035214,-400.0,0.00019807,2]
[360684571,1746927035224,-1348.57,0.00019807,2]
[360684572,1746927035234,-424.03,0.00019807,2]
[360684573,1746927035244,-400.0,0.00019807,2]
[360684574,1746927035254,-400.0,0.00019807,2]
[360684575,1746927035263,-400.0,0.00019807,2]
[360684576,1746927035273,-620.55,0.00019807,2]
[360684577,1746927035283,-477.54,0.00019807,2]
[360684578,1746927035292,-240.19,0.00019807,2]
[360684579,1746927035302,-1141.79,0.00019807,2]
[360684580,1746927035312,-400.0,0.00019807,2]
[360684581,1746927035321,-400.0,0.00019807,2]
[360684582,1746927035330,-400.0,0.00019807,2]
[360684583,1746927035340,-400.0,0.00019807,2]
[360684584,1746927035349,-946.8,0.00019807,2]
[360684585,1746927035359,-400.0,0.00019807,2]
[360684586,1746927035368,-400.0,0.00019807,2]
[360684587,1746927035377,-400.0,0.00019807,2]
[360684588,1746927035387,-400.0,0.00019807,2]
[360684589,1746927035396,-400.0,0.00019807,2]
[360684590,1746927035405,-400.0,0.00019807,2]
[360684591,1746927035414,-400.0,0.00019807,2]
[360684592,1746927035424,-400.0,0.00019807,2]
[360684593,1746927035434,-400.0,0.00019807,2]
[360684594,1746927035443,-400.0,0.00019807,2]
[360684595,1746927035454,-400.0,0.00019807,2]
[360684596,1746927035464,-400.0,0.00019807,2]
[360684597,1746927035475,-400.0,0.00019807,2]
[360684598,1746927035485,-400.0,0.00019807,2]
[360684599,1746927035498,-232.91201084,0.00019807,2]
[360684600,1746927035511,-400.0,0.00019807,2]
[360684601,1746927035523,-432.4,0.00019807,2]
[360684602,1746927035539,-400.0,0.00019807,2]
[360684603,1746927035550,-400.0,0.00019807,2]
[360684604,1746927035560,-395.05,0.00019807,2]
[360684605,1746927035570,-400.0,0.00019807,2]
[360684606,1746927035579,-400.0,0.00019807,2]
[360684607,1746927035589,-400.0,0.00019807,2]
[360684608,1746927035598,-400.0,0.00019807,2]
[360684609,1746927035607,-400.0,0.00019807,2]
[360684610,1746927035617,-400.0,0.00019807,2]
[360684611,1746927035626,-420.1,0.00019807,2]
[360684612,1746927035636,-400.0,0.00019807,2]
[360684613,1746927035645,-400.0,0.00019807,2]
[360684614,1746927035654,-400.0,0.00019807,2]
[360684615,1746927035664,-400.0,0.00019807,2]
[360684616,1746927035674,-400.0,0.00019807,2]
[360684617,1746927035684,-400.0,0.00019807,2]
[360684618,1746927035696,-400.0,0.00019807,2]
[360684619,1746927035706,-400.0,0.00019807,2]
[360684620,1746927035716,-400.0,0.00019807,2]
[360684621,1746927035725,-428.10712948,0.00019807,2]
[360684622,1746927035734,-187.60816181,0.00019807,2]
[360684623,1746927035744,-400.0,0.00019807,2]
[360684624,1746927035754,-400.0,0.00019807,2]
[360684625,1746927035763,-2259.04935133,0.00019814,2]
[360684626,1746927035773,-9508.66632563,0.00019818,2]
[360684627,1746927035783,-303.34,0.00019819,2]
[360684628,1746927035792,-304.24,0.00019819,2]
[360684629,1746927035802,-305.05,0.00019819,2]
[360684630,1746927035811,-305.41,0.00019819,2]
[360684631,1746927035820,-302.98,0.00019819,2]
[360684632,1746927035829,-303.15,0.00019819,2]
[360684633,1746927035838,-301.16,0.00019819,2]
[360684634,1746927035848,-305.41,0.00019819,2]
[360684635,1746927035858,-305.58,0.00019819,2]
[360684636,1746927035867,-300.59,0.00019819,2]
[360684637,1746927035877,-303.29,0.00019819,2]
[360684638,1746927035886,-300.49,0.00019819,2]
[360684639,1746927035895,-305.55,0.00019819,2]
[360684640,1746927035904,-300.4,0.00019819,2]
[360684641,1746927035914,-301.05,0.00019819,2]
[360684642,1746927035924,-2259.04935133,0.00019831,2]
[360684643,1746927035933,-400.0,0.00019845,2]
[360684644,1746927035942,-400.0,0.00019845,2]
[360684645,1746927035953,-483.07205119,0.00019845,2]
[360684646,1746927035963,-400.0,0.00019845,2]
[360684647,1746927035973,-400.0,0.00019845,2]
[360684648,1746927035982,-421.89286315,0.00019845,2]
[360684649,1746927035991,-400.0,0.00019845,2]
[360684650,1746927036001,-400.0,0.00019845,2]
[360684651,1746927036011,-400.0,0.00019845,2]
[360684652,1746927036021,-400.0,0.00019845,2]
[360684653,1746927036030,-520.79043219,0.00019845,2]
[360684654,1746927036039,-400.0,0.00019845,2]
[360684655,1746927036049,-400.0,0.00019845,2]
[360684656,1746927036058,-400.0,0.00019845,2]
[360684657,1746927036068,-400.0,0.00019845,2]
[360684658,1746927036077,-489.14,0.00019845,2]
[360684659,1746927036086,-400.0,0.00019845,2]
[360684660,1746927036095,-450.0,0.00019845,2]
[360684661,1746927036104,-400.0,0.00019845,2]
[360684662,1746927036114,-272.42713246,0.00019845,2]
[360684663,1746927036124,-400.0,0.00019845,2]
[360684664,1746927036133,-400.0,0.00019845,2]
[360684665,1746927036143,-400.0,0.00019845,2]
[360684666,1746927036152,-400.0,0.00019845,2]
[360684667,1746927036161,-400.0,0.00019845,2]
[360684668,1746927036170,-400.0,0.00019845,2]
[360684669,1746927036180,-400.0,0.00019845,2]
[360684670,1746927036190,-400.0,0.00019845,2]
[360684671,1746927036200,-400.0,0.00019845,2]
[360684672,1746927036209,-400.0,0.00019845,2]
[360684673,1746927036218,-404.77,0.00019845,2]
[360684674,1746927036227,-400.0,0.00019845,2]
[360684675,1746927036237,-400.0,0.00019845,2]
[360684676,1746927036246,-400.0,0.00019845,2]
[360684677,1746927036255,-400.0,0.00019845,2]
[360684678,1746927036264,-400.0,0.00019845,2]
[360684679,1746927036274,-400.0,0.00019845,2]
[360684680,1746927036283,-400.0,0.00019845,2]
[360684681,1746927036293,-480.16529214,0.00019845,2]
[360684682,1746927036302,-400.0,0.00019845,2]
[360684683,1746927036311,-400.0,0.00019845,2]
[360684684,1746927036321,-788.38,0.00019845,2]
[360684685,1746927036330,-400.0,0.00019845,2]
[360684686,1746927036340,-400.0,0.00019845,2]
[360684687,1746927036353,-400.0,0.00019845,2]
[360684688,1746927036362,-400.0,0.00019845,2]
[360684689,1746927036371,-400.0,0.00019845,2]
[360684690,1746927036381,-400.0,0.00019845,2]
[360684691,1746927036391,-20626.04,0.00019845,2]
[360684692,1746927036400,-400.0,0.00019845,2]
[360684693,1746927036410,-425.22,0.00019845,2]
[360684694,1746927036419,-400.0,0.00019845,2]
[360684695,1746927036428,-400.0,0.00019845,2]
[360684696,1746927036437,-400.0,0.00019845,2]
[360684697,1746927036449,-400.0,0.00019845,2]
[360684698,1746927036458,-400.0,0.00019845,2]
[360684699,1746927036468,-421.64,0.00019845,2]
[360684700,1746927036478,-426.09,0.00019845,2]
[360684701,1746927036487,-400.0,0.00019845,2]
[360684702,1746927036497,-400.0,0.00019845,2]
[360684703,1746927036506,-445.66,0.00019845,2]
[360684704,1746927036516,-506.74,0.00019845,2]
[360684705,1746927036525,-1029.49,0.00019845,2]
[360684706,1746927036535,-1492.61,0.00019845,2]
[360684707,1746927036545,-421.45212126,0.00019845,2]
[360684708,1746927036555,-502.55104512,0.00019845,2]
[360684709,1746927036564,-1852.98,0.00019845,2]
[360684710,1746927036574,-439.06,0.00019845,2]
[360684711,1746927036584,-840.35,0.00019845,2]
[360684712,1746927036594,-157.86181857,0.00019845,2]
[360684713,1746927036604,-400.0,0.00019846,2]
[360684714,1746927036613,-400.0,0.00019846,2]
[360684715,1746927036623,-400.0,0.00019846,2]
[360684716,1746927036633,-400.0,0.00019846,2]
[360684717,1746927036642,-400.0,0.00019846,2]
[360684718,1746927036653,-400.0,0.00019846,2]
[360684719,1746927036662,-400.0,0.00019846,2]
[360684720,1746927036672,-352.33454436,0.00019846,2]
[360684721,1746927036681,-400.0,0.00019846,2]
[360684722,1746927036696,-400.0,0.00019846,2]
[360684723,1746927036706,-400.0,0.00019846,2]
[360684724,1746927036840,-400.0,0.00019846,2]
[360684725,1746927036873,-305.15687876,0.00019846,2]
[360684726,1746927036883,-400.0,0.00019846,2]
[360684727,1746927036892,-400.0,0.00019846,2]
[360684728,1746927036901,-400.0,0.00019846,2]
[360684729,1746927036911,-400.0,0.00019846,2]
[360684730,1746927036921,-400.0,0.00019846,2]
[360684731,1746927036930,-400.0,0.00019846,2]
[360684732,1746927036939,-400.0,0.00019846,2]
[360684733,1746927036950,-400.0,0.00019846,2]
[360684734,1746927036960,-542.33593441,0.00019846,2]
[360684735,1746927036969,-436.12301547,0.00019846,2]
[360684736,1746927036978,-437.92489924,0.00019846,2]
[360684737,1746927036987,-400.0,0.00019846,2]
[360684738,1746927036998,-500.0,0.00019846,2]
[360684739,1746927037007,-400.0,0.00019846,2]
[360684740,1746927037016,-400.0,0.00019846,2]
[360684741,1746927037025,-509.30764877,0.00019846,2]
[360684742,1746927037034,-400.0,0.00019846,2]
[360684743,1746927037043,-400.0,0.00019846,2]
[360684744,1746927037052,-400.0,0.00019846,2]
[360684745,1746927037061,-400.0,0.00019846,2]
[360684746,1746927037070,-400.0,0.00019846,2]
[360684747,1746927037079,-400.0,0.00019846,2]
[360684748,1746927037088,-400.0,0.00019846,2]
[360684749,1746927037098,-400.0,0.00019846,2]
[360684750,1746927037107,-400.0,0.00019846,2]
[360684751,1746927037116,-400.0,0.00019846,2]
[360684752,1746927037125,-400.0,0.00019846,2]
[360684753,1746927037135,-428.62613942,0.00019846,2]
[360684754,1746927037144,-400.0,0.00019846,2]
[360684755,1746927037154,-400.0,0.00019846,2]
[360684756,1746927037164,-400.0,0.00019846,2]
[360684757,1746927037175,-420.26,0.00019846,2]
[360684758,1746927037184,-466.80261,0.00019846,2]
[360684759,1746927037194,-443.88,0.00019846,2]
[360684760,1746927037206,-400.0,0.00019846,2]
[360684761,1746927037219,-400.0,0.00019846,2]
[360684762,1746927037230,-400.0,0.00019846,2]
[360684763,1746927037240,-400.0,0.00019846,2]
[360684764,1746927037249,-400.0,0.00019846,2]
[360684765,1746927037259,-400.0,0.00019846,2]
[360684766,1746927037268,-400.0,0.00019846,2]
[360684767,1746927037278,-400.0,0.00019846,2]
[360684768,1746927037287,-400.0,0.00019846,2]
[360684769,1746927037296,-400.0,0.00019846,2]
[360684770,1746927037306,-2259.04935133,0.00019848,2]
[360684771,1746927037316,-302.85,0.00019859,2]
[360684772,1746927037325,-303.98,0.00019859,2]
[360684773,1746927037335,-303.12,0.00019859,2]
[360684774,1746927037344,-302.52,0.00019859,2]
[360684775,1746927037353,-304.69,0.00019859,2]
[360684776,1746927037363,-9508.66632563,0.00019859,2]
[360684777,1746927037372,-304.75,0.00019863,2]
[360684778,1746927037381,-304.91,0.00019863,2]
[360684779,1746927037391,-2259.04935133,0.00019866,2]
[360684780,1746927037401,-2259.04935133,0.00019883,2]
[360684781,1746927037411,-400.0,0.00019884,2]
[360684782,1746927037423,-400.0,0.00019884,2]
[360684783,1746927037433,-351.14,0.00019884,2]
[360684784,1746927037443,-262.604931,0.00019896,2]
[360684785,1746927037457,-153.3324847,0.00019898,2]
[360684786,1746927037467,-1549.03,0.00019899,2]
[360684787,1746927037476,-4010.65735896,0.000199,2]
[360684788,1746927037492,-2887.36215567,0.000199,2]
[360684789,1746927037503,-362.5,0.000199,2]
[360684790,1746927037519,-2248.146811,0.000199,2]
[360684791,1746927037529,-982.85319057,0.000199,2]
[360684792,1746927037547,-259.85854214,0.000199,2]
[360684793,1746927037556,-2243.97913786,0.000199,2]
[360684802,1746927038788,-500.0,0.00019805,2]
[360684803,1746927038798,-286.58847002,0.00019805,2]
[360684804,1746927038809,-150.45261846,0.00019805,2]
[360684805,1746927038818,-287.6641025,0.00019805,2]
[360684806,1746927038827,-21.71997309,0.00019805,2]
[360684807,1746927038839,-136.35257157,0.00019805,2]
[360684808,1746927038848,-495.0403458,0.00019805,2]
[360684809,1746927038859,-4.9596542,0.00019805,2]
[360684810,1746927038869,-500.0,0.00019805,2]
[360684811,1746927038878,-614.74325679,0.00019805,2]
[360684812,1746927038887,-500.0,0.00019805,2]
[360684813,1746927038896,-500.0,0.00019805,2]
[360684814,1746927038905,-500.0,0.00019805,2]
[360684815,1746927038914,-194.08662901,0.00019805,2]
[360684816,1746927038925,-305.91337099,0.00019805,2]
[360684817,1746927038934,-419.08662871,0.00019805,2]
[360684818,1746927038945,-80.91337129,0.00019805,2]
[360684819,1746927038959,-500.0,0.00019805,2]
[360684820,1746927038968,-500.0,0.00019805,2]
[360684821,1746927038977,-500.0,0.00019805,2]
[360684822,1746927038986,-500.0,0.00019805,2]
[360684823,1746927038996,-500.0,0.00019805,2]
[360684824,1746927039005,-500.0,0.00019805,2]
[360684825,1746927039014,-400.0,0.00019806,2]
[360684826,1746927039023,-400.0,0.00019806,2]
[360684827,1746927039032,-15.07021347,0.000199,2]
[360684828,1746927039042,-304.17,0.00019918,2]
[360684829,1746927039051,-301.44,0.00019922,2]
[360684830,1746927039097,-303.36,0.00019922,2]
[360684831,1746927039106,-304.17,0.00019922,2]
[360684832,1746927039115,-303.5,0.00019954,2]
[360684833,1746927039124,-303.86,0.00019954,2]
[360684834,1746927039133,-305.12,0.00019954,2]
[360684835,1746927039142,-302.59,0.00019954,2]
[360684836,1746927039151,-500.0,0.00019973,2]
[360684837,1746927039160,-435.93310763,0.00019973,2]
[360684847,1746927039768,-64.06689237,0.00019973,2]
[360684849,1746927039779,-500.0,0.00019973,2]
[360684851,1746927039788,-435.93310763,0.00019973,2]
[360684859,1746927039850,-64.06689237,0.00019973,2]
[360684860,1746927039859,-307.33310763,0.00019973,2]
[360684861,1746927039871,-192.66689237,0.00019973,2]
[360684862,1746927039880,-500.0,0.00019973,2]
[360684863,1746927039889,-500.72828705,0.00019973,2]
[360684864,1746927039899,-500.0,0.00019973,2]
[360684865,1746927039909,-178.69149391,0.00019973,2]
[360684866,1746927039918,-500.0,0.00019973,2]
[360684867,1746927039927,-47.91332667,0.00019988,2]
[360684868,1746927039938,-352.08667333,0.00019988,2]
[360684869,1746927039951,-1501.5,0.0001999,2]
[360684870,1746927039960,-400.0,0.00019991,2]
[360684871,1746927039969,-214.42825828,0.00019991,2]
[360684872,1746927040032,-185.57174172,0.00019991,2]
[360684873,1746927040041,-400.0,0.00019991,2]
[360684874,1746927040051,-400.0,0.00019991,2]
[360684875,1746927040059,-400.0,0.00019991,2]
[360684876,1746927040068,-400.0,0.00019991,2]
[360684877,1746927040078,-400.0,0.00019991,2]
[360684878,1746927040087,-400.0,0.00019991,2]
[360684879,1746927040096,-374.16,0.00019991,2]
[360684880,1746927040105,-400.0,0.00019991,2]
[360684881,1746927040114,-400.0,0.00019991,2]
[360684882,1746927040123,-400.0,0.00019991,2]
[360684883,1746927040131,-400.0,0.00019991,2]
[360684884,1746927040140,-400.0,0.00019991,2]
[360684885,1746927040149,-345.53574343,0.00019991,2]
[360684886,1746927040158,-400.0,0.00019991,2]
[360684887,1746927040167,-400.0,0.00019991,2]
[360684888,1746927040176,-400.0,0.00019991,2]
[360684889,1746927040185,-400.0,0.00019991,2]
[360684890,1746927040194,-400.0,0.00019991,2]
[360684891,1746927040206,-400.0,0.00019991,2]
[360684892,1746927040215,-400.0,0.00019991,2]
[360684893,1746927040224,-242.37627313,0.00019991,2]
[360684894,1746927040233,-400.0,0.00019991,2]
[360684895,1746927040242,-400.0,0.00019991,2]
[360684896,1746927040251,-400.0,0.00019991,2]
[360684897,1746927040260,-420.26,0.00019991,2]
[360684898,1746927040270,-443.88,0.00019991,2]
[360684899,1746927040279,-400.0,0.00019991,2]
[360684900,1746927040289,-400.0,0.00019991,2]
[360684901,1746927040297,-400.0,0.00019991,2]
[360684902,1746927040306,-150.80032787,0.00019991,2]
[360684903,1746927040315,-539.90351451,0.00019991,2]
[360684904,1746927040324,-400.0,0.00019991,2]
[360684905,1746927040333,-400.0,0.00019991,2]
[360684906,1746927040342,-246.77,0.00019991,2]
[360684907,1746927040352,-428.13,0.00019991,2]
[360684908,1746927040362,-400.0,0.00019991,2]
[360684909,1746927040370,-400.0,0.00019991,2]
[360684910,1746927040379,-400.0,0.00019991,2]
[360684911,1746927040388,-400.0,0.00019991,2]
[360684912,1746927040397,-400.66800676,0.00019991,2]
[360684914,1746927040406,-400.0,0.00019991,2]
[360684915,1746927040415,-400.0,0.00019991,2]
[360684916,1746927040424,-400.0,0.00019991,2]
[360684917,1746927040433,-531.84,0.00019991,2]
[360684918,1746927040442,-400.0,0.00019991,2]
[360684919,1746927040452,-736.67,0.00019991,2]
[360684920,1746927040462,-400.0,0.00019991,2]
[360684921,1746927040471,-400.0,0.00019991,2]
[360684922,1746927040480,-400.0,0.00019991,2]
[360684923,1746927040489,-400.0,0.00019991,2]
[360684924,1746927040498,-517.43489842,0.00019991,2]
[360684925,1746927040507,-419.64,0.00019991,2]
[360684926,1746927040516,-400.0,0.00019991,2]
[360684927,1746927040525,-401.13462593,0.00019991,2]
[360684928,1746927040534,-400.0,0.00019991,2]
[360684929,1746927040544,-400.0,0.00019991,2]
[360684930,1746927040553,-508.86,0.00019991,2]
[360684931,1746927040563,-400.0,0.00019991,2]
[360684932,1746927040572,-400.0,0.00019991,2]
[360684933,1746927040581,-280.57931949,0.00019991,2]
[360684934,1746927040590,-400.0,0.00019991,2]
[360684935,1746927040600,-400.67089959,0.00019991,2]
[360684936,1746927040609,-400.0,0.00019991,2]
[360684937,1746927040618,-607.86,0.00019991,2]
[360684938,1746927040627,-400.0,0.00019991,2]
[360684939,1746927040637,-400.0,0.00019991,2]
[360684940,1746927040646,-400.0,0.00019991,2]
[360684941,1746927040655,-400.0,0.00019991,2]
[360684942,1746927040665,-644.98,0.00019991,2]
[360684943,1746927040674,-400.0,0.00019991,2]
[360684944,1746927040684,-400.0,0.00019991,2]
[360684945,1746927040693,-400.0,0.00019991,2]
[360684946,1746927040706,-522.48324786,0.00019991,2]
[360684947,1746927040715,-420.75341006,0.00019991,2]
[360684948,1746927040725,-427.76,0.00019991,2]
[360684949,1746927040734,-309.64596177,0.00019991,2]
[360684950,1746927040744,-240.97970871,0.00019991,2]
[360684951,1746927040753,-400.0,0.00019991,2]
[360684952,1746927040762,-400.0,0.00019992,2]
[360684953,1746927040771,-246.16,0.00019992,2]
[360684954,1746927040783,-680.6,0.00019992,2]
[360684955,1746927040794,-400.0,0.00019992,2]
[360684956,1746927040803,-545.40635997,0.00019992,2]
[360684957,1746927040813,-394.73841178,0.00019992,2]
[360684958,1746927040822,-425.09,0.00019992,2]
[360684959,1746927040834,-400.0,0.00019992,2]
[360684960,1746927040843,-400.0,0.00019992,2]
[360684961,1746927040852,-400.0,0.00019992,2]
[360684962,1746927040861,-400.0,0.00019992,2]
[360684963,1746927040870,-400.0,0.00019992,2]
[360684964,1746927040879,-402.02,0.00019992,2]
[360684965,1746927040888,-400.0,0.00019992,2]
[360684966,1746927040897,-400.0,0.00019992,2]
[360684967,1746927040906,-400.0,0.00019992,2]
[360684968,1746927040915,-400.0,0.00019992,2]
[360684969,1746927040924,-400.0,0.00019992,2]
[360684970,1746927040934,-400.0,0.00019992,2]
[360684971,1746927040943,-400.0,0.00019992,2]
[360684972,1746927040953,-400.0,0.00019992,2]
[360684973,1746927040962,-400.0,0.00019992,2]
[360684974,1746927040972,-400.0,0.00019992,2]
[360684975,1746927040981,-400.0,0.00019992,2]
[360684976,1746927040990,-400.0,0.00019992,2]
[360684977,1746927040999,-400.0,0.00019992,2]
[360684978,1746927041008,-400.0,0.00019992,2]
[360684979,1746927041017,-400.0,0.00019992,2]
[360684980,1746927041026,-510.86,0.00019992,2]
[360684981,1746927041035,-400.0,0.00019992,2]
[360684982,1746927041045,-400.0,0.00019992,2]
[360684983,1746927041054,-400.0,0.00019992,2]
[360684984,1746927041063,-491.84,0.00019992,2]
[360684985,1746927041072,-400.0,0.00019992,2]
[360684986,1746927041082,-400.0,0.00019992,2]
[360684987,1746927041091,-400.0,0.00019992,2]
[360684988,1746927041100,-479.30745015,0.00019992,2]
[360684989,1746927041110,-400.0,0.00019992,2]
[360684990,1746927041120,-540.2,0.00019992,2]
[360684991,1746927041130,-400.0,0.00019992,2]
[360684992,1746927041139,-400.0,0.00019992,2]
[360684993,1746927041149,-484.78,0.00019992,2]
[360684994,1746927041159,-400.0,0.00019992,2]
[360684995,1746927041168,-400.0,0.00019992,2]
[360684996,1746927041178,-400.0,0.00019992,2]
[360684997,1746927041187,-400.0,0.00019992,2]
[360684998,1746927041199,-718.86,0.00019992,2]
[360684999,1746927041209,-400.0,0.00019992,2]
[360685000,1746927041218,-521.92,0.00019992,2]
[360685001,1746927041228,-400.0,0.00019992,2]
[360685002,1746927041238,-400.0,0.00019992,2]
[360685003,1746927041248,-400.0,0.00019992,2]
[360685004,1746927041257,-400.0,0.00019992,2]
[360685005,1746927041267,-500.0,0.00019992,2]
[360685006,1746927041277,-400.0,0.00019992,2]
[360685007,1746927041288,-400.0,0.00019992,2]
[360685008,1746927041299,-1348.57,0.00019992,2]
[360685009,1746927041310,-424.03,0.00019992,2]
[360685010,1746927041320,-349.17,0.00019992,2]
[360685011,1746927041331,-493.76,0.00019992,2]
[360685012,1746927041341,-620.55,0.00019992,2]
[360685013,1746927041350,-1141.79,0.00019992,2]
[360685014,1746927041360,-400.0,0.00019992,2]
[360685015,1746927041369,-400.0,0.00019992,2]
[360685016,1746927041379,-400.0,0.00019992,2]
[360685017,1746927041388,-946.8,0.00019992,2]
[360685018,1746927041398,-400.0,0.00019992,2]
[360685019,1746927041408,-400.0,0.00019992,2]
[360685020,1746927041417,-400.0,0.00019992,2]
[360685021,1746927041426,-400.0,0.00019992,2]
[360685022,1746927041436,-400.0,0.00019992,2]
[360685023,1746927041445,-400.0,0.00019992,2]
[360685024,1746927041458,-400.0,0.00019992,2]
[360685025,1746927041468,-400.0,0.00019992,2]
[360685026,1746927041477,-400.0,0.00019992,2]
[360685027,1746927041486,-432.4,0.00019992,2]
[360685028,1746927041496,-400.0,0.00019992,2]
[360685029,1746927041506,-400.0,0.00019992,2]
[360685030,1746927041515,-400.0,0.00019992,2]
[360685031,1746927041526,-400.0,0.00019992,2]
[360685032,1746927041535,-400.0,0.00019992,2]
[360685033,1746927041545,-400.0,0.00019992,2]
[360685034,1746927041554,-420.1,0.00019992,2]
[360685035,1746927041563,-400.0,0.00019992,2]
[360685036,1746927041573,-193.52,0.00019992,2]
[360685037,1746927041582,-400.0,0.00019992,2]
[360685038,1746927041592,-400.0,0.00019992,2]
[360685039,1746927041602,-318.50834766,0.00019992,2]
[360685040,1746927041611,-400.0,0.00019992,2]
[360685041,1746927041621,-400.0,0.00019992,2]
[360685042,1746927041631,-400.0,0.00019992,2]
[360685043,1746927041640,-400.0,0.00019992,2]
[360685044,1746927041650,-400.0,0.00019992,2]
[360685045,1746927041660,-400.0,0.00019992,2]
[360685046,1746927041670,-400.0,0.00019993,2]
[360685047,1746927041679,-400.0,0.00019995,2]
[360685048,1746927041690,-400.0,0.00019995,2]
[360685049,1746927041704,-400.0,0.00019995,2]
[360685050,1746927041713,-400.0,0.00019995,2]
[360685051,1746927041723,-400.0,0.00019995,2]
[360685052,1746927041732,-400.0,0.00019995,2]
[360685053,1746927041743,-400.0,0.00019995,2]
[360685054,1746927041752,-404.77,0.00019995,2]
[360685055,1746927041762,-400.0,0.00019995,2]
[360685056,1746927041771,-400.0,0.00019995,2]
[360685057,1746927041781,-400.0,0.00019995,2]
[360685058,1746927041790,-788.38,0.00019995,2]
[360685059,1746927041799,-400.0,0.00019995,2]
[360685060,1746927041808,-112.48447471,0.00019995,2]
[360685061,1746927041822,-287.51552529,0.00019995,2]
[360685062,1746927041831,-400.0,0.00019995,2]
[360685063,1746927041840,-429.48,0.00019995,2]
[360685064,1746927041850,-400.0,0.00019995,2]
[360685065,1746927041859,-400.0,0.00019995,2]
[360685066,1746927041868,-400.0,0.00019995,2]
[360685067,1746927041878,-400.0,0.00019995,2]
[360685068,1746927041887,-657.68611959,0.00019995,2]
[360685069,1746927041899,-19968.35388041,0.00019995,2]
[360685070,1746927041908,-413.11,0.00019995,2]
[360685071,1746927041917,-252.30461311,0.00019995,2]
[360685072,1746927041981,700.0,0.00030136,120]
[360685073,1746927042015,700.0,0.00030136,120]
[360685074,1746927042060,700.0,0.00030136,120]
[360685075,1746927042109,700.0,0.00030136,120]
[360685076,1746927042143,700.0,0.00030136,120]
[360685077,1746927042187,700.0,0.00030136,120]
[360685078,1746927042435,700.0,0.00030136,120]
[360685079,1746927042482,700.0,0.00030136,120]
[360685083,1746927042697,700.0,0.00030136,120]
[360685093,1746927042801,-173.37743148,0.00019707,2]
[360685096,1746927042811,-147.69538689,0.00019995,2]
[360685098,1746927042821,-400.0,0.00019995,2]
[360685100,1746927042833,-400.0,0.00019995,2]
[360685102,1746927042842,-425.22,0.00019995,2]
[360685104,1746927042852,-260.48,0.00019995,2]
[360685106,1746927042862,-400.0,0.00019995,2]
[360685108,1746927042872,-736.67,0.00019995,2]
[360685110,1746927042882,-400.0,0.00019995,2]
[360685112,1746927042892,-400.0,0.00019995,2]
[360685114,1746927042902,-219.46,0.00019995,2]